bitfinex-derivatives/quotes_ETHF0:USTF0_20210702
["timestamp","ask_amount","ask_price","bid_price","bid_amount"]
[1625222561300,1.0,2029.9,2028.5,2.20527]
[1625222561398,49.7541,2030.0,2028.5,2.20527]
[1625222561501,52.63773267,2030.0,2028.5,2.20527]
[1625222562302,2.20527,2028.8,2028.5,2.20527]
[1625222564307,2.20527,2028.8,2028.7,2.20527]
[1625222568730,2.20527,2028.8,2028.5,2.20527]
[1625222568830,5.41877,2028.8,2026.9,5.0]
[1625222568932,1.0,2028.7,2026.9,5.0]
[1625222569232,58.9936,2028.6,2026.9,5.0]
[1625222569337,59.9936,2028.6,2026.7,19.66825841]
[1625222569491,59.9936,2028.6,2026.7,18.69375841]
[1625222570043,1.0,2028.6,2026.8,17.991558]
[1625222570384,1.0,2028.6,2028.4,2.20527]
[1625222570484,5.41877,2028.8,2028.4,2.20527]
[1625222572446,7.62404,2028.8,2028.4,2.20527]
[1625222573949,50.6925,2028.5,2028.4,2.20527]
[1625222574399,52.89777,2028.5,2028.2,2.20527]
[1625222574702,52.89777,2028.5,2027.8,2.20527]
[1625222574851,52.89777,2028.5,2026.8,1.0]
[1625222574950,53.89777,2028.5,2026.7,18.69300294]
[1625222575204,53.89777,2028.5,2026.7,15.8469]
[1625222575352,42.5667,2027.6,2026.7,15.8469]
[1625222575451,45.9378,2027.6,2026.7,15.8469]
[1625222575652,45.9378,2027.6,2026.5,2.85028499]
[1625222576104,45.9378,2027.6,2026.4,2.85314402]
[1625222576453,2.20527,2027.1,2026.9,2.20527]
[1625222576554,5.69687,2027.1,2026.9,2.20527]
[1625222577055,3.4916,2027.1,2026.9,2.20527]
[1625222577455,3.4916,2027.1,2027.0,49.5665]
[1625222577556,1.0,2028.3,2027.0,49.5665]
[1625222577657,15.4503,2028.4,2027.0,52.364]
[1625222578308,15.4503,2028.4,2027.0,55.21623869]
[1625222578458,2.20527,2028.2,2028.0,2.20527]
[1625222580012,1.0,2029.0,2028.0,2.20527]
[1625222580112,49.784,2029.1,2028.0,2.20527]
[1625222580563,2.20527,2028.1,2028.0,2.20527]
[1625222581069,2.20527,2028.1,2026.8,16.0492]
[1625222581169,2.20527,2028.1,2026.8,17.90268012]
[1625222581571,2.20527,2028.1,2026.8,15.0492]
[1625222582471,2.20527,2028.1,2027.6,2.20527]
[1625222583983,2.20527,2028.1,2027.6,4.53367]
[1625222584484,2.20527,2028.1,2027.9,2.20527]
[1625222586491,2.20527,2028.0,2027.9,2.20527]
[1625222590605,2.20527,2028.0,2026.8,15.0492]
[1625222590705,5.38847,2028.0,2026.8,15.0492]
[1625222591310,48.2041,2026.9,2026.8,15.0492]
[1625222591412,50.6855,2026.9,2026.8,15.0492]
[1625222591627,50.6855,2026.9,2026.3,2.84827944]
[1625222592016,50.6855,2026.9,2026.0,2.8510069]
[1625222592572,52.89077,2026.9,2026.8,2.20527]
[1625222594481,55.09604,2026.9,2026.8,2.20527]
[1625222596896,55.09604,2026.9,2025.6,1.0]
[1625222596994,55.09604,2026.9,2025.5,2.85742502]
[1625222598514,50.6855,2026.9,2026.2,2.20527]
[1625222598665,48.2041,2026.9,2026.2,5.50407]
[1625222599214,48.2041,2026.9,2026.2,3.2988]
[1625222600567,4.41054,2026.3,2026.2,3.2988]
[1625222603425,48.2041,2026.9,2026.2,3.2988]
[1625222603724,1.0,2027.4,2026.2,3.2988]
[1625222603827,65.1001,2027.6,2026.0,2.20527]
[1625222604526,65.1001,2027.6,2026.4,2.20527]
[1625222604527,2.20527,2026.6,2026.4,2.20527]
[1625222604626,2.20527,2026.6,2026.4,5.00977]
[1625222605780,2.20527,2026.6,2026.4,2.8045]
[1625222605884,2.20527,2026.6,2026.0,2.20527]
[1625222606484,50.4637,2026.1,2026.0,2.20527]
[1625222606584,52.66897,2026.1,2026.0,2.20527]
[1625222607288,2.20527,2026.1,2026.0,2.20527]
[1625222607649,2.20527,2026.6,2026.0,2.20527]
[1625222607755,45.3055,2026.9,2026.0,5.17547]
[1625222608609,2.20527,2026.7,2026.6,2.20527]
[1625222610567,4.41054,2026.7,2026.6,2.20527]
[1625222614631,4.41054,2026.7,2026.6,4.41054]
[1625222615080,58.19004,2026.7,2026.6,4.41054]
[1625222616528,4.41054,2026.7,2025.7,1.99849163]
[1625222616631,2.20527,2026.7,2026.4,2.20527]
[1625222618731,2.20527,2026.5,2026.4,2.20527]
[1625222618981,45.10667,2026.5,2026.4,2.20527]
[1625222619181,2.20527,2026.5,2026.4,2.20527]
[1625222621386,5.99897,2026.5,2026.4,2.20527]
[1625222624592,5.99897,2026.5,2025.4,21.9067846]
[1625222624693,5.99897,2026.5,2025.7,2.20527]
[1625222625544,48.2023,2025.8,2025.7,2.20527]
[1625222625647,50.6845,2025.8,2025.7,2.20527]
[1625222626648,52.88977,2025.8,2025.7,2.20527]
[1625222626745,55.09504,2025.8,2025.7,2.20527]
[1625222627806,6.89274,2025.8,2025.7,2.20527]
[1625222628631,4.41054,2025.8,2025.7,2.20527]
[1625222628981,4.41054,2025.8,2025.0,57.1903]
[1625222629078,4.41054,2025.8,2024.8,16.96136596]
[1625222629330,4.41054,2025.8,2024.8,2.00336596]
[1625222629632,4.41054,2025.8,2024.7,2.00402164]
[1625222629782,1.0,2026.3,2024.7,2.00402164]
[1625222629882,14.6594,2026.6,2024.7,9.81992164]
[1625222629981,1.0,2026.5,2024.7,9.81992164]
[1625222630132,1.0,2026.5,2024.9,2.0030919]
[1625222630282,2.02435844,2027.5,2026.3,53.3699]
[1625222630383,14.9174,2027.4,2026.3,56.4172]
[1625222630631,6.78275152,2027.8,2026.3,56.4172]
[1625222630730,2.20527,2026.9,2026.4,2.20527]
[1625222631037,1.0,2027.7,2026.4,2.20527]
[1625222631182,4.759,2027.8,2026.4,2.20527]
[1625222631532,4.759,2027.8,2027.1,43.247]
[1625222631635,2.02337359,2028.1,2027.1,46.9708]
[1625222631782,23.59359381,2028.4,2027.1,46.9708]
[1625222631783,19.8359,2028.4,2027.1,46.9708]
[1625222631985,24.8359,2028.4,2027.1,46.9708]
[1625222632082,67.958,2028.4,2027.1,46.9708]
[1625222632184,69.98087399,2028.4,2027.1,46.9708]
[1625222632287,69.98087399,2028.4,2027.1,3.7238]
[1625222632435,6.78187399,2028.4,2027.1,3.7238]
[1625222632636,4.759,2028.4,2027.1,3.7238]
[1625222632734,2.20527,2027.5,2027.4,2.20527]
[1625222632934,2.20527,2027.5,2027.4,50.13317]
[1625222633036,2.20527,2027.5,2027.4,2.20527]
[1625222636742,2.20527,2027.5,2027.4,55.51627]
[1625222637894,2.20527,2027.5,2027.4,2.20527]
[1625222641573,2.20527,2027.5,2027.2,2.20527]
[1625222641675,4.89457,2027.5,2027.2,2.20527]
[1625222642726,2.20527,2027.5,2027.2,2.20527]
[1625222642828,2.20527,2027.3,2027.2,2.20527]
[1625222643494,2.20527,2027.3,2027.2,56.97547]
[1625222643739,2.20527,2027.5,2027.2,56.97547]
[1625222643840,2.20527,2027.5,2027.2,59.32117]
[1625222644392,2.20527,2027.5,2027.2,4.55097]
[1625222644840,2.20527,2027.5,2027.4,2.20527]
[1625222647353,94.7405,2029.1,2027.4,2.20527]
[1625222648772,2.20527,2028.4,2028.3,2.20527]
[1625222648870,2.20527,2028.4,2028.3,5.88297]
[1625222650933,2.20527,2028.5,2028.3,5.88297]
[1625222651177,2.20527,2028.5,2028.4,61.151]
[1625222651477,1.0,2029.3,2028.4,61.151]
[1625222651576,2.02196935,2029.7,2028.4,61.151]
[1625222652083,2.02174875,2029.9,2028.4,61.151]
[1625222652185,2.02174875,2029.9,2029.3,61.145]
[1625222652286,2.02174875,2029.9,2029.3,64.8837]
[1625222652690,2.02170963,2030.1,2029.3,64.8837]
[1625222652836,2.20527,2029.8,2029.7,2.20527]
[1625222654891,4.41054,2029.8,2029.7,2.20527]
[1625222660625,1.0,2030.6,2029.7,2.20527]
[1625222660725,2.01833611,2030.7,2029.7,5.77657]
[1625222660825,2.01742835,2030.8,2029.7,5.77657]
[1625222660926,2.20527,2030.5,2030.3,2.20527]
[1625222661031,2.20527,2030.5,2030.3,5.29937]
[1625222662882,2.20527,2030.4,2030.3,5.29937]
[1625222666639,4.88207,2030.4,2030.3,2.20527]
[1625222666741,61.66857,2030.4,2030.3,2.20527]
[1625222667191,4.88207,2030.4,2030.3,2.20527]
[1625222670047,2.20527,2030.4,2030.3,2.20527]
[1625222670598,2.20527,2030.4,2030.3,61.34587]
[1625222671701,2.20527,2030.4,2030.3,2.20527]
[1625222672710,2.20527,2030.4,2030.3,5.12277]
[1625222676191,5.81507,2030.4,2030.3,2.20527]
[1625222677996,5.81507,2030.4,2029.9,2.20527]
[1625222678995,2.20527,2030.0,2029.9,2.20527]
[1625222679899,5.84877,2030.0,2029.9,2.20527]
[1625222686626,3.6435,2030.0,2029.9,2.20527]
[1625222686729,2.20527,2030.4,2029.9,2.20527]
[1625222687129,4.41054,2030.4,2029.9,2.20527]
[1625222689081,2.20527,2030.0,2029.9,2.20527]
[1625222693791,2.20527,2030.0,2029.9,53.44997]
[1625222694994,2.20527,2030.0,2029.9,2.20527]
[1625222695546,2.20527,2030.0,2029.9,47.93757]
[1625222697204,2.20527,2030.0,2029.9,2.20527]
[1625222699004,2.20527,2030.0,2029.9,56.47027]
[1625222700305,2.20527,2030.0,2029.9,2.20527]
[1625222701155,5.93147,2030.0,2029.9,2.20527]
[1625222701956,5.93147,2030.0,2029.9,56.46547]
[1625222702457,5.93147,2030.0,2029.9,2.20527]
[1625222709052,5.93147,2030.0,2029.7,2.20527]
[1625222709153,5.93147,2030.0,2028.4,76.2343]
[1625222709252,1.0,2029.9,2029.5,2.20527]
[1625222709355,5.93147,2030.0,2029.5,2.20527]
[1625222709551,60.74267,2030.0,2029.5,2.20527]
[1625222709650,5.93147,2030.0,2029.5,2.20527]
[1625222710455,5.93147,2030.0,2028.5,1.0]
[1625222710554,1.0,2029.9,2028.4,15.0833]
[1625222710654,57.2153,2029.5,2028.4,15.0833]
[1625222710754,60.1756,2029.5,2028.4,15.0833]
[1625222711204,2.20527,2029.1,2029.0,2.20527]
[1625222716033,2.20527,2029.3,2029.0,2.20527]
[1625222717184,2.20527,2029.1,2029.0,2.20527]
[1625222718239,2.20527,2029.1,2029.0,59.76237]
[1625222718488,2.20527,2029.3,2029.0,59.76237]
[1625222718599,2.20527,2029.3,2029.0,62.21237]
[1625222719196,2.20527,2029.3,2029.2,2.20527]
[1625222719747,2.20527,2029.7,2029.2,2.20527]
[1625222721257,2.20527,2029.7,2029.6,2.20527]
[1625222722484,1.0,2030.4,2029.6,2.20527]
[1625222722578,2.02014226,2030.6,2029.6,2.20527]
[1625222722782,7.64491752,2030.7,2029.6,2.20527]
[1625222722884,4.759,2030.7,2029.6,2.20527]
[1625222722982,4.759,2030.7,2029.9,59.3614]
[1625222723182,4.759,2030.7,2029.2,3.20527]
[1625222723183,2.20527,2030.4,2030.3,2.20527]
[1625222723282,5.10797,2030.4,2029.3,1.0]
[1625222723433,5.10797,2030.4,2028.4,71.0657]
[1625222723634,1.0,2030.3,2028.4,71.0657]
[1625222724035,1.0,2030.3,2028.5,18.005645]
[1625222724390,58.4037,2030.0,2028.4,71.0657]
[1625222724489,1.0,2029.9,2028.4,71.0657]
[1625222724588,4.2367,2029.9,2028.4,71.0657]
[1625222725292,2.20527,2029.5,2029.4,2.20527]
[1625222727143,2.20527,2029.5,2029.2,2.20527]
[1625222727292,2.20527,2029.3,2029.2,2.20527]
[1625222727392,5.10607,2029.3,2029.2,2.20527]
[1625222733553,2.20527,2029.3,2029.2,2.20527]
[1625222733919,2.20527,2029.3,2029.2,5.77787]
[1625222740803,2.20527,2029.5,2029.2,5.77787]
[1625222740902,1.45211011,2029.6,2029.2,5.77787]
[1625222741004,1.45198444,2029.8,2029.2,5.77787]
[1625222741254,1.45198444,2029.8,2029.7,2.20527]
[1625222742560,3.65715039,2029.9,2029.7,2.20527]
[1625222742658,1.45188039,2029.9,2029.7,2.20527]
[1625222743312,1.45188039,2029.9,2029.8,2.20527]
[1625222743415,1.45180856,2030.0,2029.8,2.20527]
[1625222743864,3.65708314,2030.1,2029.8,2.20527]
[1625222745321,3.65708314,2030.1,2030.0,2.20527]
[1625222745872,4.23775222,2030.1,2030.0,2.20527]
[1625222747125,2.03248222,2030.1,2030.0,2.20527]
[1625222747628,1.45165997,2030.1,2030.0,2.20527]
[1625222747826,2.03239301,2030.1,2030.0,2.20527]
[1625222748076,1.45167921,2030.1,2030.0,2.20527]
[1625222750343,2.0323509,2030.2,2030.0,2.20527]
[1625222750344,1.4515907,2030.2,2030.0,2.20527]
[1625222750791,1.4515938,2030.1,2030.0,2.20527]
[1625222751041,1.45150104,2030.2,2030.0,2.20527]
[1625222751342,1.45152483,2030.1,2030.0,2.20527]
[1625222751544,1.45152483,2030.1,2029.3,1.42017695]
[1625222751644,1.45152483,2030.1,2029.2,1.41825427]
[1625222752049,1.45152483,2030.1,2028.8,3.68746111]
[1625222752050,1.45179262,2029.7,2028.9,1.41979354]
[1625222752148,4.71619262,2029.7,2028.9,1.41979354]
[1625222752398,1.45191485,2029.6,2028.7,1.4206177]
[1625222752802,5.29708079,2029.7,2028.8,1.41995365]
[1625222752803,4.71621612,2029.7,2028.8,1.41995365]
[1625222752901,4.71621612,2029.7,2028.9,52.7087]
[1625222753203,1.45189628,2029.6,2028.9,52.7087]
[1625222753409,2.20527,2029.3,2029.2,2.20527]
[1625222754306,2.20527,2029.3,2028.7,1.42036506]
[1625222754808,2.20527,2029.3,2028.6,1.42149489]
[1625222755312,2.20527,2029.3,2028.5,1.98988093]
[1625222755313,2.20527,2029.3,2028.5,1.42203407]
[1625222755408,2.20527,2028.8,2028.5,3.62730407]
[1625222755510,5.70247,2028.8,2028.5,3.62730407]
[1625222756262,5.70247,2028.8,2028.6,1.42178243]
[1625222756713,5.70247,2028.8,2028.7,58.98326128]
[1625222757167,5.70247,2028.8,2028.7,1.42136128]
[1625222757365,5.70247,2028.8,2028.7,3.62663128]
[1625222757967,5.70247,2028.8,2028.7,2.20527]
[1625222758820,5.70247,2028.8,2028.6,2.20527]
[1625222758821,5.70247,2028.8,2028.4,1.42356054]
[1625222759069,5.70247,2028.8,2028.3,1.42500094]
[1625222759420,2.20527,2028.4,2028.2,3.63034119]
[1625222759821,2.20527,2028.4,2028.2,2.20527]
[1625222760433,2.19449724,2028.8,2028.2,2.20527]
[1625222760674,2.19449724,2028.8,2028.2,1.42476648]
[1625222760925,55.7461,2028.6,2028.3,1.42461727]
[1625222761025,58.8105,2028.6,2028.3,1.42461727]
[1625222761126,3.0644,2028.6,2028.3,1.42461727]
[1625222761274,3.0644,2028.6,2028.2,1.99446417]
[1625222761275,3.0644,2028.6,2028.2,1.42509148]
[1625222761474,3.0644,2028.6,2028.5,2.20527]
[1625222762326,2.19449724,2028.8,2028.5,2.20527]
[1625222763478,2.20527,2028.6,2028.5,2.20527]
[1625222764637,2.19449724,2028.8,2028.5,2.20527]
[1625222764787,1.4513436,2029.5,2028.5,6.85413205]
[1625222765142,1.4513436,2029.5,2029.3,59.9532]
[1625222765245,1.45118071,2029.7,2029.3,62.9258]
[1625222765443,2.20527,2029.5,2029.4,2.20527]
[1625222766098,1.45094266,2030.0,2029.4,2.20527]
[1625222766447,1.45090979,2030.1,2029.4,2.20527]
[1625222766696,2.0312737,2030.2,2029.4,2.20527]
[1625222766697,1.45088771,2030.2,2029.4,2.20527]
[1625222766996,1.45091067,2030.1,2029.4,2.20527]
[1625222767096,4.91071067,2030.1,2029.4,2.20527]
[1625222767201,3.4598,2030.1,2029.4,2.20527]
[1625222767450,2.20527,2030.0,2029.9,2.20527]
[1625222769609,4.41054,2030.0,2029.9,2.20527]
[1625222770864,4.41054,2030.0,2029.2,1.42035219]
[1625222771565,2.20527,2030.0,2029.4,2.20527]
[1625222772365,2.20527,2030.0,2029.4,44.43517]
[1625222773634,2.20527,2029.7,2029.4,44.43517]
[1625222775547,2.20527,2029.7,2029.5,2.20527]
[1625222786457,2.20527,2029.7,2029.0,1.41849877]
[1625222786558,5.12397,2029.7,2029.0,1.41849877]
[1625222786855,5.12397,2029.7,2028.8,1.42226679]
[1625222787105,5.12397,2029.7,2028.7,1.42248945]
[1625222787710,2.20527,2029.1,2029.0,2.20527]
[1625222787805,5.16817,2029.1,2029.0,2.20527]
[1625222789660,7.37344,2029.1,2029.0,2.20527]
[1625222803359,7.37344,2029.1,2029.0,63.76967]
[1625222806632,4.41054,2029.1,2029.0,63.76967]
[1625222806731,1.0,2029.7,2029.0,63.76967]
[1625222806831,1.45077457,2029.8,2029.0,63.76967]
[1625222806934,1.45071,2030.0,2029.0,63.76967]
[1625222807433,1.45071,2030.0,2029.9,60.002]
[1625222807532,8.53084599,2030.4,2029.9,62.6879]
[1625222807533,1.4506026,2030.3,2029.9,62.6879]
[1625222807732,4.41054,2030.0,2029.9,64.89317]
[1625222813518,2.20527,2030.0,2029.9,64.89317]
[1625222814118,2.20527,2030.2,2029.9,64.89317]
[1625222815780,2.20527,2030.2,2030.0,2.20527]
[1625222817339,2.20527,2030.2,2030.0,4.83187]
[1625222817690,1.4492318,2030.7,2030.0,4.83187]
[1625222817841,3.6545018,2030.7,2030.6,4.41054]
[1625222817941,3.6545018,2030.7,2030.6,7.63294]
[1625222818041,5.10373359,2030.9,2030.6,7.63294]
[1625222818042,3.65432697,2030.9,2030.6,7.63294]
[1625222818243,3.65432697,2030.9,2030.8,49.7439]
[1625222818390,1.44896362,2031.2,2030.8,49.7439]
[1625222818991,1.44878035,2031.5,2030.8,49.7439]
[1625222819089,1.44878035,2031.5,2030.9,17.856206]
[1625222819839,1.44878035,2031.5,2031.4,4.41054]
[1625222819990,2.20527,2031.8,2031.4,6.73174]
[1625222820289,1.44747092,2031.9,2031.4,6.73174]
[1625222820793,2.20527,2032.0,2031.4,6.73174]
[1625222821042,2.20527,2032.0,2031.5,17.926471]
[1625222821441,2.20527,2032.0,2031.4,6.73174]
[1625222821894,2.20527,2032.0,2031.9,4.41054]
[1625222823044,2.20527,2032.0,2031.9,6.76634]
[1625222826472,2.20527,2032.3,2031.9,6.76634]
[1625222827025,2.44298254,2032.7,2031.9,6.76634]
[1625222827276,1.0,2032.7,2031.9,6.76634]
[1625222827629,1.0,2032.7,2032.4,60.9254]
[1625222827931,4.41054,2032.5,2032.4,60.9254]
[1625222830702,4.41054,2032.5,2032.2,2.20527]
[1625222830850,8.05254,2032.5,2032.2,2.20527]
[1625222830953,8.05254,2032.5,2031.3,1.0]
[1625222831058,8.05254,2032.5,2030.3,5.0]
[1625222831149,9.05254,2032.5,2030.3,5.0]
[1625222831351,50.355,2032.0,2030.3,5.0]
[1625222831449,53.2504,2032.0,2030.3,5.0]
[1625222831550,2.8954,2032.0,2030.3,5.0]
[1625222831751,1.0,2031.9,2030.3,5.0]
[1625222831954,2.20527,2031.4,2031.2,2.20527]
[1625222832102,5.35107,2031.4,2031.2,2.20527]
[1625222835869,5.35107,2031.4,2031.0,2.20527]
[1625222835968,2.20527,2031.1,2031.0,2.20527]
[1625222837771,2.20527,2031.1,2030.7,2.20527]
[1625222837976,2.20527,2030.8,2030.7,2.20527]
[1625222838677,4.91457,2030.8,2030.7,2.20527]
[1625222841889,1.0,2031.4,2030.7,2.20527]
[1625222841989,2.20527,2031.5,2031.3,4.41054]
[1625222842090,2.20527,2031.5,2031.3,8.04524]
[1625222842290,2.20527,2031.5,2031.3,3.6347]
[1625222842393,2.20527,2031.5,2031.4,61.6137]
[1625222844043,2.20527,2031.5,2031.4,66.02424]
[1625222844247,1.0,2032.6,2031.4,66.02424]
[1625222844345,1.0,2032.7,2031.4,66.02424]
[1625222845195,2.0,2032.7,2031.4,66.02424]
[1625222845295,2.0,2032.7,2031.4,69.72984]
[1625222845395,2.0,2032.7,2032.5,41.4821]
[1625222845496,1.0,2032.7,2032.5,41.4821]
[1625222846049,4.41054,2032.6,2032.5,41.4821]
[1625222848169,4.41054,2032.6,2032.4,2.20527]
[1625222854184,8.14234,2032.6,2032.4,2.20527]
[1625222854740,8.14234,2032.6,2031.9,2.20527]
[1625222855794,1.0,2032.5,2031.9,2.20527]
[1625222856044,4.41054,2032.0,2031.9,2.20527]
[1625222857099,1.0,2032.5,2031.9,2.20527]
[1625222858163,1.0,2032.5,2032.4,2.20527]
[1625222858753,1.0,2032.5,2032.4,51.57757]
[1625222860156,1.0,2032.5,2032.4,53.78284]
[1625222860707,1.0,2033.1,2032.4,53.78284]
[1625222860807,1.0,2033.8,2032.4,53.78284]
[1625222861209,1.0,2033.8,2032.4,58.78284]
[1625222861610,1.0,2033.8,2032.5,17.813736]
[1625222861716,1.0,2033.8,2033.5,46.8112]
[1625222861816,1.43513439,2034.4,2033.5,50.052]
[1625222861917,17.65318378,2034.6,2033.5,50.052]
[1625222862017,16.65318378,2034.6,2033.5,50.052]
[1625222862218,2.20527,2034.0,2033.9,2.20527]
[1625222864179,4.41054,2034.0,2033.9,2.20527]
[1625222865783,8.11834,2034.0,2033.9,2.20527]
[1625222867537,8.11834,2034.0,2033.9,45.72517]
[1625222867786,4.41054,2034.0,2033.9,45.72517]
[1625222867887,1.0,2034.6,2033.9,45.72517]
[1625222867989,4.759,2034.9,2033.9,48.85357]
[1625222868186,2.20527,2034.8,2034.7,2.20527]
[1625222868386,2.20527,2034.8,2034.6,43.5114]
[1625222868586,2.20527,2034.8,2033.9,43.5199]
[1625222868689,1.16309563,2034.4,2033.9,43.5199]
[1625222868801,2.20527,2034.8,2033.9,43.5199]
[1625222870252,2.20527,2034.3,2034.2,2.20527]
[1625222870905,4.76647,2034.3,2034.2,2.20527]
[1625222871006,4.76647,2034.3,2034.0,2.20527]
[1625222872258,2.20527,2034.1,2034.0,2.20527]
[1625222873160,1.0,2034.8,2034.0,2.20527]
[1625222873259,1.0,2035.4,2034.0,2.20527]
[1625222873361,1.0,2035.4,2034.2,52.5592]
[1625222873512,4.759,2035.5,2034.2,52.5592]
[1625222874059,4.759,2035.5,2034.2,56.3453]
[1625222874260,2.20527,2034.7,2034.6,2.20527]
[1625222876264,2.20527,2034.7,2034.6,4.41054]
[1625222877477,2.20527,2034.7,2033.7,55.7187]
[1625222877668,2.20527,2034.7,2033.4,15.0199]
[1625222877768,3.20527,2034.7,2033.4,15.0199]
[1625222878218,3.20527,2034.7,2034.6,2.20527]
[1625222878318,2.20527,2034.7,2034.6,2.20527]
[1625222893716,5.39817,2034.7,2034.6,2.20527]
[1625222894169,63.76897,2034.7,2034.6,2.20527]
[1625222894368,5.39817,2034.7,2034.6,2.20527]
[1625222895117,5.39817,2034.7,2033.6,1.0]
[1625222895219,5.39817,2034.7,2033.3,47.5466]
[1625222895317,6.39817,2034.7,2033.3,47.5466]
[1625222896320,6.39817,2034.7,2034.2,2.20527]
[1625222896419,5.39817,2034.7,2034.2,2.20527]
[1625222898321,2.20527,2034.4,2034.2,2.20527]
[1625222900387,2.20527,2034.3,2034.2,2.20527]
[1625222903952,4.87627,2034.3,2034.2,2.20527]
[1625222904111,2.671,2034.3,2034.2,2.20527]
[1625222904226,1.0,2034.9,2034.2,2.20527]
[1625222904314,5.7286,2035.2,2034.2,5.30187]
[1625222904416,2.20527,2035.0,2034.8,2.20527]
[1625222904519,2.20527,2035.0,2034.8,5.70077]
[1625222905014,2.20527,2035.0,2034.8,57.69257]
[1625222905918,1.0,2035.8,2034.8,57.69257]
[1625222906075,4.759,2035.9,2034.8,57.69257]
[1625222906419,2.20527,2035.3,2035.2,2.20527]
[1625222915115,4.69157,2035.3,2035.2,2.20527]
[1625222915264,4.69157,2035.3,2034.2,1.0]
[1625222915365,4.69157,2035.3,2034.0,15.2385]
[1625222915468,5.69157,2035.3,2034.0,15.2385]
[1625222915821,4.69157,2035.3,2034.0,15.2385]
[1625222915921,5.69157,2035.3,2034.0,15.2385]
[1625222916019,5.69157,2035.3,2034.0,20.2385]
[1625222916119,2.20527,2035.3,2034.4,48.3067]
[1625222916269,2.20527,2035.3,2034.4,51.0421]
[1625222916421,2.20527,2035.3,2035.2,2.20527]
[1625222916519,2.20527,2035.3,2035.2,5.72047]
[1625222916721,2.20527,2035.7,2035.2,5.72047]
[1625222917121,2.20527,2035.7,2035.6,54.0291]
[1625222918424,2.20527,2035.7,2035.6,56.23437]
[1625222918574,16.8639,2036.5,2035.6,56.23437]
[1625222918673,15.8639,2036.5,2035.6,56.23437]
[1625222918825,1.4325543,2036.6,2035.6,56.23437]
[1625222919225,2.4229087,2036.7,2035.6,56.23437]
[1625222919325,1.4322087,2036.7,2035.6,56.23437]
[1625222920439,2.20527,2036.4,2036.2,2.20527]
[1625222920538,2.20527,2036.4,2036.2,5.58827]
[1625222921238,2.20527,2036.6,2036.2,5.58827]
[1625222922492,2.20527,2036.6,2036.5,2.20527]
[1625222927963,2.20527,2036.6,2036.5,7e-05]
[1625222928056,2.20527,2036.6,2034.9,16.1391]
[1625222928153,5.06477,2036.6,2034.9,16.1391]
[1625222928254,6.06477,2036.6,2034.9,16.1391]
[1625222928555,2.20527,2035.9,2035.8,2.20527]
[1625222929709,1.0,2037.2,2035.8,50.03947]
[1625222929856,14.9775,2037.3,2035.8,50.03947]
[1625222930221,14.9775,2037.3,2035.8,2.20527]
[1625222930520,2.20527,2035.9,2035.8,2.20527]
[1625222930620,5.26877,2035.9,2035.8,2.20527]
[1625222931776,2.20527,2035.9,2035.8,2.20527]
[1625222932076,1.0,2037.2,2035.8,2.20527]
[1625222932176,1.0,2037.2,2035.8,5.45107]
[1625222932530,2.20527,2036.7,2036.5,2.20527]
[1625222932629,2.20527,2036.7,2036.5,4.99027]
[1625222934580,2.20527,2036.6,2036.5,4.99027]
[1625222940956,2.20527,2036.7,2036.5,4.99027]
[1625222942160,15.9775,2037.3,2036.5,4.99027]
[1625222942259,14.9775,2037.3,2036.5,4.99027]
[1625222942409,6.19022081,2038.1,2036.5,4.99027]
[1625222942509,2.43177128,2038.0,2036.5,4.99027]
[1625222942609,4.63704128,2038.0,2037.9,2.20527]
[1625222942709,3.63704128,2038.0,2037.9,5.84837]
[1625222942960,2.20527,2038.0,2037.7,2.20527]
[1625222944666,2.20527,2037.8,2037.7,2.20527]
[1625222945064,1.43102691,2038.3,2037.7,2.20527]
[1625222945266,1.0,2038.7,2037.7,2.20527]
[1625222945417,72.8303,2039.2,2037.7,2.20527]
[1625222945664,1.43102991,2038.2,2037.7,2.20527]
[1625222946265,1.43102991,2038.2,2037.5,2.20527]
[1625222946365,1.43102991,2038.2,2036.8,1.0]
[1625222946469,1.43102991,2038.2,2033.0,0.9695]
[1625222946470,1.43207202,2038.0,2033.0,0.9695]
[1625222946572,1.0,2037.9,2036.8,2.20527]
[1625222946720,2.20527,2036.9,2036.8,2.20527]
[1625222948638,6.91984,2036.9,2036.8,2.20527]
[1625222959327,6.91984,2036.9,2035.6,1.0]
[1625222959432,7.91984,2036.9,2035.5,15.892]
[1625222960140,50.05814,2036.9,2035.5,15.892]
[1625222960642,7.91984,2036.9,2035.5,15.892]
[1625222960744,2.20527,2036.2,2036.1,2.20527]
[1625222961846,5.95847,2036.2,2036.1,2.20527]
[1625222962761,8.16374,2036.2,2036.1,2.20527]
[1625222962860,8.16374,2036.2,2035.0,1.0]
[1625222963014,8.16374,2036.2,2034.1,1.0]
[1625222963110,1.0,2036.1,2033.6,1.40289781]
[1625222963263,1.0,2036.1,2034.1,15.5463]
[1625222964765,2.20527,2034.9,2034.7,2.20527]
[1625222966720,4.41054,2034.9,2034.7,2.20527]
[1625222966821,8.09824,2034.9,2034.7,2.20527]
[1625222980124,4.41054,2034.9,2034.7,2.20527]
[1625222980478,4.41054,2034.9,2034.7,4.71177]
[1625222980576,1.0,2035.7,2034.7,4.71177]
[1625222980727,1.0,2036.1,2034.7,4.71177]
[1625222980825,2.20527,2035.4,2035.3,2.20527]
[1625222980928,2.20527,2035.4,2035.3,5.05607]
[1625222982884,4.41054,2035.4,2035.3,5.05607]